bitfinex/quotes_ETHUSD_20250406
["timestamp","ask_amount","ask_price","bid_price","bid_amount"]
[1743941858847,3.91128,1789.7,1789.4,6.85292]
[1743941859175,3.91128,1789.7,1789.5,0.7692]
[1743941859383,3.0,1789.9,1789.6,6.16]
[1743941859384,3.91084,1789.9,1789.6,6.16]
[1743941859685,3.91084,1789.9,1789.7,0.7692]
[1743941860276,3.91048,1790.1,1789.9,0.7692]
[1743941860471,3.91061,1790.0,1789.9,0.7692]
[1743941862003,3.91061,1790.0,1789.6,3.91148]
[1743941862194,3.91091,1789.9,1789.7,0.7692]
[1743941862377,3.91091,1789.9,1789.8,0.15077379]
[1743941864201,3.91061,1790.0,1789.8,0.15077379]
[1743941865511,3.91083,1789.9,1789.8,0.15077379]
[1743941865872,3.91083,1789.9,1789.8,6.31077379]
[1743941869608,3.91061,1790.0,1789.8,6.31077379]
[1743941869808,3.91029,1790.2,1789.9,6.16]
[1743941870009,3.91051,1790.1,1789.9,6.16]
[1743941870308,3.91051,1790.1,1790.0,0.14919503]
[1743941874780,3.91051,1790.1,1790.0,6.30919503]
[1743941881700,3.91051,1790.1,1790.0,7.07349503]
[1743941882174,3.91003,1790.3,1790.0,7.78084453]
[1743941883057,7.82013,1790.3,1790.0,7.78084453]
[1743941883560,3.91021,1790.2,1790.0,7.78084453]
[1743941886460,3.91021,1790.2,1790.1,6.16]
[1743941887056,3.91021,1790.2,1790.1,6.31040212]
[1743941887759,3.91003,1790.3,1790.1,7.00672474]
[1743941888077,3.90974,1790.4,1790.1,7.00672474]
[1743941888294,3.90974,1790.4,1790.2,0.8272]
[1743941888660,3.90974,1790.4,1790.3,0.14682781]
[1743941888857,3.90974,1790.4,1790.3,6.30682781]
[1743941889848,3.90939,1790.6,1790.3,6.30682781]
[1743941890036,9.08539,1790.6,1790.3,6.30682781]
[1743941890546,3.90953,1790.5,1790.3,6.30682781]
[1743941891381,3.90953,1790.5,1790.3,6.16]
[1743941891584,3.90953,1790.5,1790.3,6.85872]
[1743941891745,3.90953,1790.5,1790.4,0.14397919]
[1743941892174,3.90953,1790.5,1790.3,6.85872]
[1743941892388,3.90953,1790.5,1790.4,0.1438505]
[1743941892789,3.90953,1790.5,1790.3,6.85872]
[1743941892994,3.90953,1790.5,1790.4,0.1438505]
[1743941893199,3.90953,1790.5,1790.3,6.85872]
[1743941893356,3.90953,1790.5,1790.4,0.1438505]
[1743941893551,3.90953,1790.5,1790.3,6.16]
[1743941893758,3.90953,1790.5,1790.4,0.1438505]
[1743941894093,3.90953,1790.5,1790.3,6.16]
[1743941894310,3.90953,1790.5,1790.4,0.9157505]
[1743941895060,3.90953,1790.5,1790.4,0.1438505]
[1743941895264,3.90953,1790.5,1790.4,6.3038505]
[1743941901319,4.693093,1790.5,1790.4,6.3038505]
[1743941903328,8.259893,1790.5,1790.4,0.1438505]
[1743941903718,3.91015,1790.3,1790.1,6.16]
[1743941904028,3.91017,1790.2,1790.1,6.16]
[1743941906227,3.90975,1790.4,1790.1,6.85584]
[1743941906541,3.90975,1790.4,1790.2,0.7646]
[1743941907018,3.90975,1790.4,1790.3,6.16]
[1743941908039,3.92655,1790.4,1790.3,6.16]
[1743941908253,3.92655,1790.4,1790.3,6.30521846]
[1743941909439,3.90975,1790.4,1790.3,6.30521846]
[1743941910951,5.45903674,1790.4,1790.3,6.30521846]
[1743941911147,3.90975,1790.4,1790.3,6.30521846]
[1743941915842,3.90975,1790.4,1790.3,6.16]
[1743941916262,3.90975,1790.4,1790.3,6.30534718]
[1743941919880,6.92655,1790.4,1790.3,6.30534718]
[1743941920090,9.077758,1790.4,1790.3,6.30534718]
[1743941920374,3.91061,1790.0,1789.9,6.16]
[1743941920793,3.91061,1790.0,1789.9,6.29690286]
[1743941925660,3.91047,1790.1,1789.9,6.29690286]
[1743941926000,7.82103,1790.1,1789.9,6.29690286]
[1743941926199,7.82103,1790.1,1789.9,7.00622315]
[1743941927303,3.91047,1790.1,1789.9,7.00622315]
[1743941928016,7.82106,1790.1,1789.9,7.00622315]
[1743941928389,3.91061,1790.0,1789.9,7.00622315]
[1743941928605,3.91047,1790.1,1789.9,7.00622315]
[1743941928917,3.91061,1790.0,1789.9,6.29690286]
[1743941938082,3.92741,1790.0,1789.9,6.29690286]
[1743941940010,3.91061,1790.0,1789.9,6.29690286]
[1743941947543,3.92741,1790.0,1789.9,0.13690286]
[1743941947714,8.228898,1790.0,1789.9,0.13690286]
[1743941947914,3.91105,1789.8,1789.7,6.16]
[1743941953367,3.91105,1789.8,1789.7,6.29848165]
[1743941955767,3.91091,1789.9,1789.7,7.05588165]
[1743941956873,6.91091,1789.9,1789.8,6.16]
[1743941957032,6.91091,1789.9,1789.8,6.29788539]
[1743941961475,8.512444,1789.9,1789.8,6.29788539]
[1743941969848,6.91091,1789.9,1789.8,6.29788539]
[1743941971256,6.91091,1789.9,1789.8,7.05188539]
[1743941971570,6.91091,1789.9,1789.8,6.29788539]
[1743941973274,6.91091,1789.9,1789.8,6.16]
[1743941974275,6.91091,1789.9,1789.8,6.29788539]
[1743941974671,8.512544,1789.9,1789.8,6.29788539]
[1743941980704,6.91091,1789.9,1789.8,6.29788539]
[1743941981072,12.08791,1789.9,1789.8,6.29788539]
[1743941981805,6.91091,1789.9,1789.8,6.29788539]
[1743941981968,3.91019,1790.2,1789.9,3.91078]
[1743941982325,3.91019,1790.2,1790.0,0.93159308]
[1743941984897,7.82054,1790.2,1790.0,0.93159308]
[1743941986210,7.82054,1790.2,1790.1,6.16]
[1743941986401,7.82054,1790.2,1790.1,6.29609703]
[1743941986713,7.82054,1790.2,1790.1,7.00519673]
[1743941987307,3.91019,1790.2,1790.1,7.00519673]
[1743941991815,3.91019,1790.2,1790.1,6.29609703]
[1743941995028,3.91019,1790.2,1790.1,7.07729703]
[1743941999130,3.91019,1790.2,1790.1,6.29609703]
[1743941999908,3.91019,1790.2,1790.1,7.07729703]
[1743942004224,3.91019,1790.2,1790.1,6.29609703]
[1743942031866,3.91019,1790.2,1790.1,6.48227964]
[1743942046392,6.91019,1790.2,1790.1,6.48227964]
[1743942046604,7.709004,1790.2,1790.1,6.48227964]
[1743942048417,8.259004,1790.2,1790.1,6.48227964]
[1743942049707,8.67683467,1790.2,1790.1,0.32227964]
[1743942050032,3.92785,1789.8,1789.7,6.16]
[1743942050400,3.92785,1789.8,1789.7,6.48483691]
[1743942050998,6.92785,1789.8,1789.7,6.48483691]
[1743942052337,7.47785,1789.8,1789.7,0.32483691]
[1743942052511,8.616726,1789.8,1789.7,0.32483691]
[1743942052711,3.9117,1789.5,1789.4,6.16]
[1743942052915,3.91214,1789.3,1789.2,6.16]
[1743942058242,3.91214,1789.3,1789.2,6.43444809]
[1743942066669,3.92894,1789.3,1789.2,6.43444809]
[1743942066874,4.713032,1789.3,1789.2,6.43444809]
[1743942069576,7.713032,1789.3,1789.2,6.43444809]
[1743942070154,8.263032,1789.3,1789.2,6.43444809]
[1743942070556,8.246232,1789.3,1789.2,0.27444809]
[1743942070874,7.47916,1789.2,1789.1,0.05]
[1743942071074,13.4817832,1789.2,1789.1,0.05]
[1743942072496,13.4817832,1789.2,1788.2,3.91454]
[1743942072497,3.91411,1788.4,1788.3,6.16]
[1743942072983,3.91411,1788.4,1788.3,6.4456912]
[1743942074246,3.93091,1788.4,1788.3,6.4456912]
[1743942074446,4.715398,1788.4,1788.3,0.2856912]
[1743942076667,7.715398,1788.4,1788.3,0.2856912]
[1743942076868,8.265398,1788.4,1788.3,0.2856912]
[1743942077075,3.91433,1788.3,1788.2,6.16]
[1743942077386,5.1323028,1788.3,1788.2,6.16]
[1743942080092,6.91455,1788.2,1787.9,6.16]
[1743942080300,8.179,1788.2,1787.9,6.16]
[1743942080469,12.09355,1788.2,1787.9,6.16]
[1743942080670,12.09355,1788.2,1788.1,0.8639]
[1743942081594,13.81613528,1788.2,1788.1,0.8639]
[1743942084363,13.81613528,1788.2,1788.1,0.05]
[1743942085311,13.83293528,1788.2,1788.1,0.05]
[1743942086858,14.38293528,1788.2,1788.1,0.05]
[1743942087675,14.38293528,1788.2,1788.1,0.33789371]
[1743942087875,14.38293528,1788.2,1788.1,0.05]
[1743942088115,14.38293528,1788.2,1788.1,0.33802512]
[1743942088314,14.38293528,1788.2,1788.1,0.05]
[1743942088613,14.38293528,1788.2,1788.1,0.33815653]
[1743942088785,14.38293528,1788.2,1788.1,0.05]
[1743942088985,14.38293528,1788.2,1788.1,0.33815653]
[1743942089198,14.38293528,1788.2,1788.1,0.05]
[1743942089717,14.38293528,1788.2,1788.1,0.33815653]
[1743942090014,14.38293528,1788.2,1788.1,0.05]
[1743942090181,14.38293528,1788.2,1788.1,0.33815653]
[1743942090378,14.38293528,1788.2,1788.1,0.05]
[1743942090916,14.38293528,1788.2,1788.1,0.33815653]
[1743942091116,14.38293528,1788.2,1788.1,0.05]
[1743942091415,14.38293528,1788.2,1788.1,0.33815653]
[1743942092012,14.38293528,1788.2,1788.1,6.53e-06]
[1743942092215,14.38293528,1788.2,1788.1,5.44e-06]
[1743942092513,14.38293528,1788.2,1787.4,6.16]
[1743942092514,3.91608,1787.5,1787.4,6.16]
[1743942092678,9.09708,1787.5,1787.4,6.16]
[1743942092883,9.09708,1787.5,1787.4,6.40683863]
[1743942093091,9.09708,1787.5,1787.4,6.16]
[1743942093296,9.09708,1787.5,1787.4,6.40683863]
[1743942095218,13.398382,1787.5,1787.4,0.24683863]
[1743942095586,3.9163,1787.4,1787.3,0.7657]
[1743942097982,3.91652,1787.3,1787.2,6.16]
[1743942099007,6.91652,1787.3,1787.2,6.16]
[1743942099801,6.91652,1787.3,1787.2,6.4080562]
[1743942101823,3.0,1787.3,1787.2,6.4080562]
[1743942102022,6.91652,1787.3,1787.2,6.4080562]
[1743942104705,7.87074667,1787.3,1787.2,6.4080562]
[1743942107352,8.43754667,1787.3,1787.2,6.4080562]
[1743942107716,8.43754667,1787.3,1787.2,0.2480562]
[1743942108214,7.48354,1787.2,1787.1,0.05]
[1743942108543,8.77396867,1787.2,1787.1,0.05]
[1743942108914,9.18795368,1787.2,1787.1,0.05]
[1743942111584,46.12095368,1787.2,1787.1,1e-05]
[1743942111857,46.86406386,1787.2,1787.1,1e-05]
[1743942112275,6.91893,1786.2,1786.1,0.05]
[1743942112478,13.361823,1786.2,1786.1,0.05]
[1743942112834,12.828823,1786.2,1786.1,0.05]
[1743942113070,12.845623,1786.2,1786.1,0.05]
[1743942114237,13.395623,1786.2,1786.1,0.05]
[1743942116665,13.378823,1786.2,1786.1,0.05]
[1743942116870,8.160823,1786.2,1786.1,0.05]
[1743942117036,13.377823,1786.2,1786.1,0.05]
[1743942117238,3.0,1786.2,1786.1,0.05]
[1743942117449,8.216,1786.2,1786.1,0.8683]
[1743942118066,8.216,1786.2,1786.1,0.05]
[1743942118272,12.13493,1786.2,1786.1,0.24264955]
[1743942118467,13.740302,1786.2,1786.1,0.24264955]
[1743942121454,13.740302,1786.2,1786.1,0.05]
[1743942121881,9.821372,1786.2,1786.1,0.05]
[1743942122080,8.216,1786.2,1786.1,0.05]
[1743942122281,12.13493,1786.2,1786.1,0.24264955]
[1743942122484,12.13493,1786.2,1786.1,0.8683]
[1743942122657,12.13493,1786.2,1786.1,1.06094955]
[1743942123276,8.221,1786.3,1786.1,1.06094955]
[1743942123482,8.221,1786.3,1786.2,0.8183]
[1743942123783,8.221,1786.3,1786.2,1.01027947]
[1743942124908,8.221,1786.3,1786.2,0.8183]
[1743942126083,8.221,1786.3,1786.2,1.00988468]
[1743942126879,8.221,1786.3,1786.2,6.9783]
[1743942127078,8.221,1786.3,1786.2,7.16988468]
[1743942127689,5.221,1786.3,1786.2,7.16988468]
[1743942127876,36.95,1786.7,1786.2,7.07357315]
[1743942128081,13.05439,1786.6,1786.3,6.9852]
[1743942128258,13.05439,1786.6,1786.4,0.18839239]
[1743942128459,13.05439,1786.6,1786.3,6.9852]
[1743942128659,3.91829,1786.5,1786.4,0.18720863]
[1743942128862,3.91829,1786.5,1786.3,6.9852]
[1743942129096,3.91829,1786.5,1786.4,0.18734015]
[1743942129594,13.05439,1786.6,1786.4,0.18734015]
[1743942129805,3.91827,1786.5,1786.4,0.18734015]
[1743942130160,14.044787,1786.6,1786.4,0.18734015]
[1743942130401,9.13617,1786.6,1786.4,0.18734015]
[1743942130576,6.91817,1786.6,1786.5,0.7595]
[1743942131097,6.91817,1786.6,1786.5,0.94623098]
[1743942131569,3.0,1786.6,1786.5,0.94623098]
[1743942132420,9.13684,1786.7,1786.5,0.94623098]
[1743942133197,10.797286,1786.7,1786.5,0.94623098]
[1743942133887,3.91805,1786.6,1786.5,0.18673098]
[1743942134096,3.91805,1786.6,1786.4,6.16]
[1743942134269,3.91805,1786.6,1786.5,0.18738863]
[1743942134803,6.91805,1786.6,1786.5,0.18738863]
[1743942134975,8.6912636,1786.6,1786.5,0.18738863]
[1743942135591,3.91827,1786.5,1786.4,6.16]
[1743942136211,3.91827,1786.5,1786.4,6.34799784]
[1743942137222,8.6912636,1786.6,1786.4,6.34799784]
[1743942137376,6.91805,1786.6,1786.4,7.12709784]
[1743942137576,5.217,1786.5,1786.4,7.12709784]
[1743942138193,6.91805,1786.6,1786.4,7.12709784]
[1743942138373,6.91817,1786.6,1786.4,7.12709784]
[1743942138569,16.0544,1786.6,1786.4,7.12709784]
[1743942139809,12.13617,1786.6,1786.4,7.12709784]
[1743942139976,5.218,1786.6,1786.4,7.12709784]
[1743942140177,3.91788,1786.7,1786.4,7.12709784]
[1743942140477,5.216,1786.6,1786.4,7.12709784]
[1743942140921,9.13409,1786.6,1786.4,7.12709784]
[1743942141107,10.439287,1786.6,1786.4,7.12709784]
[1743942141593,10.439287,1786.6,1786.5,6.16]
[1743942141980,10.439287,1786.6,1786.5,6.34738863]
[1743942144141,9.13105,1786.6,1786.5,6.34738863]
[1743942144517,5.213,1786.6,1786.5,6.34738863]
[1743942144819,5.212,1786.7,1786.6,0.8127]
[1743942145018,5.215,1786.8,1786.6,6.9727]
[1743942145241,5.215,1786.8,1786.6,7.15947949]
[1743942145545,9.13262,1786.8,1786.6,7.15947949]
[1743942146552,5.215,1786.8,1786.6,7.15947949]
[1743942148239,10.045938,1786.8,1786.6,7.15947949]
[1743942148815,3.91727,1787.0,1786.6,7.15947949]
[1743942149016,5.212,1787.0,1786.6,7.15947949]
[1743942149227,3.91749,1786.9,1786.6,7.15947949]
[1743942151011,3.91718,1787.0,1786.8,0.7871]
[1743942151410,3.91718,1787.0,1786.9,0.18403201]
[1743942153856,5.521694,1787.0,1786.9,0.18403201]
[1743942154986,3.91679,1787.2,1787.0,0.7652]
[1743942155267,3.91679,1787.2,1787.1,6.16]
[1743942155561,3.91679,1787.2,1787.1,6.32336971]
[1743942156430,3.91587,1787.6,1787.2,0.7652]
[1743942156627,3.91587,1787.6,1787.4,0.7652]
[1743942156628,9.15287,1787.6,1787.4,0.7652]
[1743942156950,12.15287,1787.6,1787.5,0.15955735]
[1743942158155,5.237,1787.6,1787.5,6.31955735]
[1743942160039,0.55,1787.8,1787.6,0.7652]
[1743942160222,0.55,1787.8,1787.7,6.16]
[1743942160428,0.55,1787.8,1787.7,6.31945728]
[1743942160826,0.55,1787.8,1787.7,11.00029728]
[1743942161050,0.55,1787.8,1787.7,11.70915425]
[1743942161728,5.241,1788.4,1788.0,3.91495]
[1743942161926,5.241,1788.4,1788.2,0.7652]
[1743942162125,3.91389,1788.5,1788.3,0.15600686]
[1743942162325,3.91389,1788.5,1788.2,0.7652]
[1743942162601,3.96305,1788.9,1788.4,4.67921]
[1743942162742,3.96305,1788.9,1788.5,6.21590504]
[1743942163063,3.91364,1788.7,1788.5,6.30219215]
[1743942163558,3.91367,1788.6,1788.5,6.30219215]
[1743942164175,9.948401,1788.6,1788.5,6.30219215]
[1743942167940,9.948401,1788.6,1788.5,0.14219215]
[1743942168143,3.91411,1788.4,1788.3,6.16]
[1743942168366,3.91411,1788.4,1788.3,6.30590055]
[1743942168978,6.91411,1788.4,1788.3,6.30590055]
[1743942169150,7.996912,1788.4,1788.3,6.30590055]
[1743942173456,7.996912,1788.4,1788.3,6.16]
[1743942173875,3.91451,1788.3,1788.1,6.16]
[1743942174856,3.91455,1788.2,1788.1,6.16]
[1743942178278,3.91455,1788.2,1788.1,6.30705191]
[1743942178467,9.991116,1788.2,1788.1,6.30705191]
[1743942181985,9.15155,1788.2,1788.1,7.08015191]
[1743942182382,9.15155,1788.2,1788.1,6.30705191]
[1743942184496,9.71815,1788.2,1788.1,6.30705191]
[1743942184818,13.26815,1788.2,1788.1,0.14705191]
[1743942185143,3.91551,1787.8,1787.6,6.9331]
[1743942185323,3.91551,1787.8,1787.7,6.16]
[1743942185485,12.16351,1787.8,1787.7,6.16]
[1743942185684,3.91608,1787.5,1787.4,6.16]
[1743942185926,3.91593,1787.6,1787.4,6.16]
[1743942189302,3.91565,1787.7,1787.5,0.7892]
[1743942189505,3.9153,1787.9,1787.6,6.16]
[1743942190641,3.91545,1787.8,1787.6,6.16]
[1743942191741,6.91501,1788.0,1787.6,6.16]
[1743942191911,6.91501,1788.0,1787.7,0.7892]
[1743942192121,6.91501,1788.0,1787.8,0.150518]
[1743942194340,3.0,1788.0,1787.9,6.16]
[1743942194540,3.0,1788.0,1787.9,6.31030367]
[1743942194717,6.91499,1788.0,1787.9,6.31030367]
[1743942195135,6.91499,1788.0,1787.9,6.16]
[1743942195458,3.91455,1788.2,1787.9,6.16]
[1743942195609,3.91455,1788.2,1788.0,6.9874]
[1743942195811,3.91455,1788.2,1788.0,7.1207681]
[1743942197040,3.91389,1788.5,1788.2,0.8274]
[1743942197243,3.0,1788.5,1788.2,0.8274]
[1743942197552,3.0,1788.5,1788.3,0.12996942]
[1743942197723,3.0,1788.5,1788.3,6.28996942]
[1743942197928,6.91398,1788.5,1788.3,6.28996942]
[1743942198118,3.0,1788.5,1788.4,6.16]
[1743942198306,3.0,1788.5,1788.4,6.29106716]
[1743942198509,9.20046,1788.7,1788.4,6.29106716]
[1743942198706,3.91323,1788.8,1788.5,6.9874]
[1743942199024,3.91323,1788.8,1788.6,0.12840892]
[1743942200349,7.82665,1788.8,1788.6,0.12840892]
[1743942200513,3.91323,1788.8,1788.5,6.9874]
[1743942200711,3.91323,1788.8,1788.5,7.67933518]
[1743942200927,3.91323,1788.8,1788.6,0.12867123]
[1743942202245,3.91345,1788.7,1788.6,0.12867123]
[1743942202815,3.91367,1788.6,1788.5,6.16]
[1743942203816,3.91345,1788.7,1788.5,6.16]
[1743942205944,3.91367,1788.6,1788.5,6.16]
[1743942207569,7.696382,1788.6,1788.5,6.16]
[1743942207951,6.91367,1788.6,1788.5,6.16]
[1743942208352,6.91367,1788.6,1788.5,6.28993469]
[1743942208787,3.96316,1788.9,1788.5,7.06313469]
[1743942208949,9.24716,1788.9,1788.6,6.92222227]
[1743942209176,0.05,1788.9,1788.7,6.9332]
[1743942209489,0.05,1788.9,1788.8,0.89718161]
[1743942209671,0.05,1788.9,1788.8,11.02630825]
[1743942211182,0.05,1788.9,1788.8,7.11307825]
[1743942211382,0.05,1788.9,1788.8,7.8104369]
[1743942212986,0.05,1788.9,1788.8,11.7236669]
[1743942213187,0.05,1788.9,1788.8,11.66777026]
[1743942216323,0.05,1788.9,1788.8,7.75454026]
[1743942216622,0.05,1788.9,1788.8,7.05718161]
[1743942218518,3.96301,1788.9,1788.8,6.28398161]
[1743942218723,0.05,1788.9,1788.8,6.28398161]
[1743942218920,3.96301,1788.9,1788.8,6.28398161]
[1743942219325,0.05,1788.9,1788.8,6.28398161]
[1743942220026,3.96301,1788.9,1788.8,6.28398161]
[1743942220342,3.96301,1788.9,1788.8,6.16]
[1743942220721,3.96301,1788.9,1788.8,6.28837409]
[1743942231158,6.96301,1788.9,1788.8,6.28837409]
[1743942231462,14.141207,1788.9,1788.8,6.28837409]
[1743942231961,14.141207,1788.9,1788.8,6.16]
[1743942234968,3.91389,1788.5,1788.4,6.16]
[1743942235375,3.91389,1788.5,1788.4,6.29257566]
[1743942235696,3.91389,1788.5,1788.4,7.00223323]
[1743942237861,3.91389,1788.5,1788.4,6.29257566]
[1743942240870,3.91389,1788.5,1788.4,7.12457566]
[1743942244206,3.91389,1788.5,1788.4,6.29257566]
[1743942256050,3.91369,1788.6,1788.4,6.29257566]
[1743942256255,3.91346,1788.7,1788.4,6.29257566]
[1743942256487,3.91326,1788.8,1788.5,1.39655757]
[1743942256690,6.91326,1788.8,1788.5,1.39655757]
[1743942256897,6.91326,1788.8,1788.6,0.13149136]
[1743942257826,10.82669,1788.8,1788.6,0.13149136]
[1743942259093,6.91326,1788.8,1788.6,0.13149136]
[1743942259964,3.91345,1788.7,1788.6,0.13149136]
[1743942260907,7.47986,1788.8,1788.4,6.16]
[1743942260908,3.91389,1788.5,1788.4,6.16]
[1743942265689,9.15889,1788.5,1788.4,6.16]
[1743942267791,3.91433,1788.3,1788.2,6.16]
[1743942268216,3.91433,1788.3,1788.2,6.29392265]
[1743942270973,3.91411,1788.4,1788.2,6.29392265]
[1743942273080,7.82837,1788.4,1788.2,6.29392265]
[1743942273468,3.91433,1788.3,1788.2,6.29392265]
[1743942281269,3.91433,1788.3,1788.2,6.16]
[1743942281270,6.91433,1788.3,1788.2,6.16]
[1743942281471,7.697174,1788.3,1788.2,6.16]
[1743942281766,7.697174,1788.3,1788.2,6.29562886]
[1743942282264,6.91433,1788.3,1788.2,6.29562886]
[1743942290404,3.91391,1788.5,1788.2,6.29562886]
[1743942290562,3.91369,1788.6,1788.3,0.85201554]
[1743942290757,3.91332,1788.8,1788.4,10.07401]
[1743942290959,3.91332,1788.8,1788.5,0.92544421]
[1743942291165,3.91346,1788.7,1788.5,0.92544421]
[1743942294250,3.91346,1788.7,1788.6,6.16]
[1743942294511,3.91346,1788.7,1788.6,6.28886779]
[1743942298031,3.91332,1788.8,1788.6,6.28886779]
[1743942298240,3.91332,1788.8,1788.6,7.00295529]
[1743942299240,3.91345,1788.7,1788.6,6.28886779]
[1743942307073,3.96304,1788.9,1788.6,6.28886779]
[1743942307381,7.87622,1788.9,1788.7,6.16]
[1743942307667,3.91323,1788.8,1788.7,6.16]
[1743942308171,7.47983,1788.8,1788.7,6.16]
[1743942308349,9.174117,1788.8,1788.7,6.16]
[1743942308752,3.91433,1788.3,1788.2,6.16]
[1743942309125,6.91433,1788.3,1788.2,6.16]
[1743942312842,7.48093,1788.3,1788.2,6.16]
[1743942313090,8.620442,1788.3,1788.2,6.16]
[1743942313300,8.620442,1788.3,1788.2,6.29628524]
[1743942313595,9.170442,1788.3,1788.2,6.29628524]
[1743942314097,9.170442,1788.3,1788.2,6.16]
[1743942314591,3.91483,1788.1,1787.7,6.16]
[1743942314795,3.91483,1788.1,1787.8,7.0125281]
[1743942315090,3.0,1788.1,1788.0,0.7966]
[1743942315298,3.0,1788.1,1788.0,0.93410156]
[1743942316298,9.12455,1788.2,1788.0,0.93410156]
[1743942316299,5.21,1788.2,1788.0,0.93410156]
[1743942316600,3.91412,1788.4,1788.0,0.93410156]
[1743942316826,3.91434,1788.3,1788.0,1.41901772]
[1743942317094,3.91412,1788.4,1788.1,0.05591936]
[1743942317296,3.91412,1788.4,1788.3,0.7966]
[1743942317800,3.91433,1788.3,1788.2,6.9566]
[1743942318879,7.82832,1788.4,1788.2,6.9566]
[1743942319086,3.91433,1788.3,1788.2,6.9566]
[1743942319487,3.91433,1788.3,1788.2,6.16]
[1743942320407,3.91412,1788.4,1788.2,6.16]
[1743942321408,3.91368,1788.6,1788.4,0.7966]
[1743942321600,9.12624,1788.8,1788.4,0.7966]
[1743942321795,3.91324,1788.8,1788.6,0.7966]
[1743942322492,7.82665,1788.8,1788.6,0.7966]
[1743942322699,3.91324,1788.8,1788.6,1.49785051]
[1743942322869,3.91324,1788.8,1788.7,6.16]
[1743942325163,3.96303,1788.9,1788.7,6.16]
[1743942325383,0.05,1788.9,1788.7,6.16]
[1743942325584,3.96302,1788.9,1788.7,6.86242161]
[1743942326814,7.87621,1788.9,1788.7,6.86242161]
[1743942327016,7.87621,1788.9,1788.7,6.16]
[1743942327214,0.05,1788.9,1788.8,10.90483]
[1743942327515,0.05,1788.9,1788.8,7.04750068]
[1743942328522,0.05,1788.9,1788.8,7.17679299]
[1743942337316,0.05,1788.9,1788.8,11.09002299]
[1743942339422,0.05,1788.9,1788.8,11.0900157]
[1743942340138,0.05,1788.9,1788.8,11.03412231]
[1743942340807,0.05,1788.9,1788.8,11.09001033]
[1743942347651,0.05,1788.9,1788.8,16.30701033]
[1743942347960,0.05,1788.9,1788.8,16.25112231]
[1743942352746,4.47854,1789.4,1789.0,3.91271]
[1743942352910,4.47854,1789.4,1789.1,6.11]
[1743942353110,4.47854,1789.4,1789.2,0.11176896]
[1743942353440,4.47854,1789.4,1789.1,6.11]
[1743942353647,4.47854,1789.4,1789.3,0.11116198]
[1743942355044,8.44810165,1789.4,1789.3,0.11116198]
[1743942355248,7.47896,1789.2,1789.1,6.11]
[1743942355449,12.69896,1789.2,1789.1,6.11]
[1743942355613,12.69896,1789.2,1789.1,6.22263817]
[1743942360646,14.360078,1789.2,1789.1,6.22263817]
[1743942361050,14.910078,1789.2,1789.1,0.11263817]
[1743942361457,4.47983,1788.8,1788.7,6.11]
[1743942361770,9.70283,1788.8,1788.7,6.22539489]
[1743942366968,9.13623,1788.8,1788.7,6.22539489]
[1743942367672,3.91323,1788.8,1788.7,6.84793438]
[1743942368387,3.91323,1788.8,1788.7,6.22539489]
[1743942377326,7.47983,1788.8,1788.7,0.11539489]
[1743942377809,8.02983,1788.8,1788.7,0.11539489]
[1743942378309,3.91411,1788.4,1788.3,6.11]
[1743942378717,4.48049,1788.5,1788.3,6.721]
[1743942379078,3.91389,1788.5,1788.3,6.721]
[1743942380506,7.82795,1788.5,1788.3,6.721]
[1743942381621,3.91389,1788.5,1788.3,6.721]
[1743942383135,3.91411,1788.4,1788.3,6.721]
[1743942384107,3.91389,1788.5,1788.3,6.721]
[1743942385078,7.82794,1788.5,1788.3,6.721]
[1743942385282,3.91411,1788.4,1788.3,6.721]
[1743942387295,3.91411,1788.4,1788.3,6.11]
[1743942388350,3.91411,1788.4,1788.3,6.22743155]
[1743942390044,3.91389,1788.5,1788.3,6.22743155]
[1743942391849,3.91411,1788.4,1788.3,6.22743155]
[1743942393110,7.48071,1788.4,1788.3,6.22743155]
[1743942393328,8.62017,1788.4,1788.3,0.11743155]
[1743942393533,3.91455,1788.2,1788.1,6.11]
[1743942393729,3.91455,1788.2,1788.1,6.22864695]
[1743942400568,3.91438,1788.3,1788.1,6.22864695]
[1743942403914,3.91455,1788.2,1788.1,6.22864695]
[1743942404110,3.91455,1788.2,1788.1,6.93223165]
[1743942404411,3.91438,1788.3,1788.1,6.93223165]
[1743942405810,3.91455,1788.2,1788.1,6.93223165]
[1743942406606,3.91438,1788.3,1788.1,6.93223165]
[1743942407319,3.91455,1788.2,1788.1,6.93223165]
[1743942411612,3.91443,1788.3,1788.1,6.93223165]
[1743942412747,7.82892,1788.3,1788.1,6.93223165]
[1743942413748,3.91455,1788.2,1788.1,6.22864695]
[1743942413958,9.10655,1788.2,1788.1,6.22864695]
[1743942414251,9.67315,1788.2,1788.1,6.22864695]
[1743942414548,9.67315,1788.2,1788.1,6.11]
[1743942414848,9.67315,1788.2,1788.1,6.22864695]
[1743942422683,9.10655,1788.2,1788.1,6.22864695]
[1743942426022,5.192,1788.2,1788.1,6.22864695]
[1743942426181,5.192,1788.2,1788.1,6.85151164]
[1743942426925,9.10655,1788.2,1788.1,6.85151164]
[1743942427224,9.10655,1788.2,1788.1,6.22864695]
[1743942435902,5.192,1788.2,1788.1,6.22864695]
[1743942437038,3.91443,1788.3,1788.1,6.22864695]
[1743942437185,12.10313,1788.4,1788.2,0.7742]
[1743942437393,12.10313,1788.4,1788.3,0.11625143]
[1743942437788,12.10313,1788.4,1788.3,6.22625143]
[1743942439289,12.10313,1788.4,1788.3,6.11]
[1743942439494,12.10313,1788.4,1788.3,6.22638254]
[1743942443635,14.271434,1788.4,1788.3,0.11638254]
[1743942444002,3.91474,1788.2,1788.0,6.11]